[Event "*** Titled Tuesday Blitz"]
[Site "Chess.com"]
[Date "2020.10.27"]
[Round "6"]
[White "krasavetc"]
[Black "olksuna"]
[Result "0-1"]
[WhiteElo "2288"]
[BlackElo "2607"]
[TimeControl "180+1"]
[EndTime "11:08:22 PDT"]
[Termination "olksuna won by resignation"]

1. e4 {[%clk 0:02:58.8]} 1... Nf6 {[%clk 0:02:59.5]} 2. e5 {[%clk 0:02:58.2]}
2... Nd5 {[%clk 0:02:59.8]} 3. Nf3 {[%clk 0:02:58.5]} 3... d6 {[%clk 0:02:59.8]}
4. Bc4 {[%clk 0:02:58.4]} 4... Nb6 {[%clk 0:02:46.8]} 5. Bb3 {[%clk 0:02:54.3]}
5... e6 {[%clk 0:02:42.3]} 6. exd6 {[%clk 0:02:54]} 6... cxd6 {[%clk 0:02:41.9]}
7. d4 {[%clk 0:02:54.9]} 7... d5 {[%clk 0:02:42.3]} 8. c3 {[%clk 0:02:55]} 8...
Nc6 {[%clk 0:02:42.5]} 9. O-O {[%clk 0:02:52.9]} 9... g6 {[%clk 0:02:42.9]} 10.
Bg5 {[%clk 0:02:51.3]} 10... Be7 {[%clk 0:02:37.8]} 11. Bh6 {[%clk 0:02:48.9]}
11... Bf8 {[%clk 0:02:33.6]} 12. Bxf8 {[%clk 0:02:44.4]} 12... Kxf8 {[%clk
0:02:33.4]} 13. Nbd2 {[%clk 0:02:43.7]} 13... Kg7 {[%clk 0:02:33.6]} 14. a4
{[%clk 0:02:41.7]} 14... Bd7 {[%clk 0:02:33.3]} 15. a5 {[%clk 0:02:40.8]} 15...
Nc8 {[%clk 0:02:33.9]} 16. Ba4 {[%clk 0:02:36.6]} 16... Nd6 {[%clk 0:02:28.7]}
17. b4 {[%clk 0:02:34.1]} 17... Re8 {[%clk 0:02:22]} 18. Nb3 {[%clk 0:02:27]}
18... b6 {[%clk 0:02:14.5]} 19. Bxc6 {[%clk 0:02:22.2]} 19... Bxc6 {[%clk
0:02:13.3]} 20. Ne5 {[%clk 0:02:15.8]} 20... Bb5 {[%clk 0:02:12]} 21. Re1 {[%clk
0:02:14]} 21... Rc8 {[%clk 0:02:09.5]} 22. axb6 {[%clk 0:02:10.5]} 22... axb6
{[%clk 0:02:10.4]} 23. Qd2 {[%clk 0:02:07.6]} 23... f6 {[%clk 0:02:05.8]} 24.
Ra7+ {[%clk 0:02:03.5]} 24... Rc7 {[%clk 0:02:02]} 25. Rxc7+ {[%clk 0:01:59.6]}
25... Qxc7 {[%clk 0:02:02.9]} 26. Nf3 {[%clk 0:01:58.7]} 26... Ne4 {[%clk
0:02:00.9]} 27. Qa2 {[%clk 0:01:49.8]} 27... Nxc3 {[%clk 0:01:49.1]} 28. Qb2
{[%clk 0:01:46]} 28... Ne4 {[%clk 0:01:06.6]} 29. Rc1 {[%clk 0:01:41.4]} 29...
Qd6 {[%clk 0:01:04.4]} 30. Nbd2 {[%clk 0:01:38.9]} 30... Nxd2 {[%clk 0:01:02.9]}
31. Nxd2 {[%clk 0:01:38.6]} 31... Re7 {[%clk 0:01:01.7]} 32. Qc3 {[%clk
0:01:37.8]} 32... Qd8 {[%clk 0:00:50.7]} 33. h3 {[%clk 0:01:33.8]} 33... h5
{[%clk 0:00:34.1]} 34. Nb1 {[%clk 0:01:26.2]} 34... Bc4 {[%clk 0:00:33.6]} 35.
Na3 {[%clk 0:01:14.1]} 35... b5 {[%clk 0:00:33.9]} 36. Nc2 {[%clk 0:01:05.5]}
36... Ra7 {[%clk 0:00:31.2]} 37. Ne3 {[%clk 0:01:04.3]} 37... Ra2 {[%clk
0:00:31]} 38. Ra1 {[%clk 0:01:00.7]} 38... Qa8 {[%clk 0:00:30.1]} 39. Re1 {[%clk
0:01:00]} 39... Kf7 {[%clk 0:00:24.8]} 40. Nc2 {[%clk 0:00:41.1]} 40... Ra6
{[%clk 0:00:17.1]} 41. Kh2 {[%clk 0:00:37.3]} 41... Kg7 {[%clk 0:00:16.9]} 42.
g3 {[%clk 0:00:31.1]} 42... Qb8 {[%clk 0:00:17.1]} 43. Re3 {[%clk 0:00:29.8]}
43... h4 {[%clk 0:00:15.5]} 44. f4 {[%clk 0:00:25.8]} 44... hxg3+ {[%clk
0:00:14.8]} 45. Kxg3 {[%clk 0:00:26.1]} 45... Qh8 {[%clk 0:00:13.2]} 46. Kh2
{[%clk 0:00:24.8]} 46... Qh4 {[%clk 0:00:11.8]} 47. Rf3 {[%clk 0:00:25]} 47...
Ra2 {[%clk 0:00:11.3]} 48. Kg1 {[%clk 0:00:21.9]} 48... Qh5 {[%clk 0:00:09.5]}
49. Ne1 {[%clk 0:00:20.5]} 49... Qf5 {[%clk 0:00:07]} 50. Ng2 {[%clk 0:00:18.5]}
50... Qe4 {[%clk 0:00:06.5]} 51. Rg3 {[%clk 0:00:17.5]} 51... Qe2 {[%clk
0:00:04.1]} 52. h4 {[%clk 0:00:13.3]} 52... Qf1+ {[%clk 0:00:04.3]} 53. Kh2
{[%clk 0:00:12.1]} 53... Ra1 {[%clk 0:00:05.2]} 54. Rf3 {[%clk 0:00:04.2]} 54...
Qh1+ {[%clk 0:00:06.1]} 55. Kg3 {[%clk 0:00:04.6]} 55... Bf1 {[%clk 0:00:06.5]}
56. Rf2 {[%clk 0:00:02.6]} 56... Bxg2 {[%clk 0:00:06.3]} 57. Rxg2 {[%clk
0:00:03.5]} 57... Rg1 {[%clk 0:00:06.6]} 58. Qf3 {[%clk 0:00:04.4]} 58... Rxg2+
{[%clk 0:00:06.1]} 59. Qxg2 {[%clk 0:00:05.3]} 59... Qxg2+ {[%clk 0:00:05.9]}
60. Kxg2 {[%clk 0:00:06.2]} 60... Kh6 {[%clk 0:00:06.4]} 61. Kg3 {[%clk
0:00:06.1]} 61... Kh5 {[%clk 0:00:06.8]} 62. Kh3 {[%clk 0:00:06.5]} 62... g5
{[%clk 0:00:07.1]} 63. hxg5 {[%clk 0:00:05]} 63... fxg5 {[%clk 0:00:08]} 64. Kg3
{[%clk 0:00:05.4]} 64... g4 {[%clk 0:00:08.2]} 65. f5 {[%clk 0:00:04.4]} 65...
exf5 {[%clk 0:00:08.1]} 66. Kf4 {[%clk 0:00:05.3]} 0-1

[Event "*** Titled Tuesday Blitz"]
[Site "Chess.com"]
[Date "2020.10.27"]
[Round "6"]
[White "brunomorado"]
[Black "Korchmar_Vasiliy"]
[Result "1/2-1/2"]
[WhiteElo "2422"]
[BlackElo "2600"]
[TimeControl "180+1"]
[EndTime "11:08:27 PDT"]
[Termination "Game drawn by stalemate"]

1. d4 {[%clk 0:03:00]} 1... Nf6 {[%clk 0:02:57.5]} 2. Nc3 {[%clk 0:02:47.5]}
2... g6 {[%clk 0:02:58.4]} 3. e4 {[%clk 0:02:47]} 3... d6 {[%clk 0:02:57.6]} 4.
g3 {[%clk 0:02:47.5]} 4... Bg7 {[%clk 0:02:56.3]} 5. Bg2 {[%clk 0:02:47.9]} 5...
O-O {[%clk 0:02:55.4]} 6. Nge2 {[%clk 0:02:48.5]} 6... Nc6 {[%clk 0:02:49.4]} 7.
h3 {[%clk 0:02:47.4]} 7... e5 {[%clk 0:02:48.5]} 8. Be3 {[%clk 0:02:47.7]} 8...
Nh5 {[%clk 0:02:11.2]} 9. O-O {[%clk 0:02:37.6]} 9... f5 {[%clk 0:02:07.2]} 10.
exf5 {[%clk 0:02:15.1]} 10... gxf5 {[%clk 0:02:06.2]} 11. dxe5 {[%clk
0:02:04.6]} 11... dxe5 {[%clk 0:02:03.7]} 12. Qxd8 {[%clk 0:01:59]} 12... Rxd8
{[%clk 0:02:04.6]} 13. Rad1 {[%clk 0:01:58.4]} 13... Be6 {[%clk 0:02:04.4]} 14.
Nb5 {[%clk 0:01:54.2]} 14... Bc4 {[%clk 0:01:54.7]} 15. Nbc3 {[%clk 0:01:37.8]}
15... e4 {[%clk 0:01:52.6]} 16. Rfe1 {[%clk 0:01:34.1]} 16... Nb4 {[%clk
0:01:33.6]} 17. Rxd8+ {[%clk 0:01:22.3]} 17... Rxd8 {[%clk 0:01:32]} 18. Rc1
{[%clk 0:01:08.6]} 18... Nxa2 {[%clk 0:01:24.5]} 19. Nxa2 {[%clk 0:01:08.3]}
19... Bxe2 {[%clk 0:01:24.8]} 20. g4 {[%clk 0:01:04.9]} 20... fxg4 {[%clk
0:01:14.7]} 21. hxg4 {[%clk 0:01:04.2]} 21... Nf6 {[%clk 0:01:15.3]} 22. g5
{[%clk 0:01:04.2]} 22... Ng4 {[%clk 0:01:14.1]} 23. Bxe4 {[%clk 0:01:03.1]}
23... Nxe3 {[%clk 0:01:14.1]} 24. fxe3 {[%clk 0:01:04]} 24... c6 {[%clk
0:01:00.3]} 25. Kf2 {[%clk 0:01:03.9]} 25... Bc4 {[%clk 0:00:58.6]} 26. Nc3
{[%clk 0:00:44.5]} 26... Rd2+ {[%clk 0:00:57.6]} 27. Kf3 {[%clk 0:00:43]} 27...
Bf7 {[%clk 0:00:15.5]} 28. Rh1 {[%clk 0:00:28]} 28... Bg6 {[%clk 0:00:15.4]} 29.
Bxg6 {[%clk 0:00:14.6]} 29... hxg6 {[%clk 0:00:16.3]} 30. Rc1 {[%clk 0:00:14.2]}
30... Kf7 {[%clk 0:00:07.9]} 31. Ne4 {[%clk 0:00:14.5]} 31... Rd5 {[%clk
0:00:08.1]} 32. c3 {[%clk 0:00:14.1]} 32... Rf5+ {[%clk 0:00:07.6]} 33. Kg4
{[%clk 0:00:14.2]} 33... Be5 {[%clk 0:00:06.2]} 34. Rd1 {[%clk 0:00:13.3]} 34...
Ke7 {[%clk 0:00:05.4]} 35. Nc5 {[%clk 0:00:09.8]} 35... Bxc3 {[%clk 0:00:04]}
36. Rd7+ {[%clk 0:00:06]} 36... Ke8 {[%clk 0:00:03.8]} 37. bxc3 {[%clk
0:00:06.9]} 37... Rxc5 {[%clk 0:00:03.8]} 38. Rxb7 {[%clk 0:00:07.8]} 38... Rc4+
{[%clk 0:00:02.2]} 39. Kf3 {[%clk 0:00:07.8]} 39... a5 {[%clk 0:00:02.6]} 40.
Ra7 {[%clk 0:00:07.7]} 40... Rc5 {[%clk 0:00:02.6]} 41. Ke4 {[%clk 0:00:07.5]}
41... Rxg5 {[%clk 0:00:01.5]} 42. Kd4 {[%clk 0:00:07.7]} 42... Kf8 {[%clk
0:00:01.7]} 43. e4 {[%clk 0:00:08]} 43... Rb5 {[%clk 0:00:01.3]} 44. e5 {[%clk
0:00:07.6]} 44... g5 {[%clk 0:00:01.9]} 45. Ke4 {[%clk 0:00:07.4]} 45... g4
{[%clk 0:00:01.5]} 46. Kf4 {[%clk 0:00:06.3]} 46... g3 {[%clk 0:00:01.9]} 47.
Kxg3 {[%clk 0:00:06.5]} 47... Rxe5 {[%clk 0:00:02]} 48. Kf4 {[%clk 0:00:07.4]}
48... Rc5 {[%clk 0:00:02.6]} 49. Ke4 {[%clk 0:00:07.7]} 49... Ke8 {[%clk
0:00:02.2]} 50. Kd4 {[%clk 0:00:08.2]} 50... Rd5+ {[%clk 0:00:01.6]} 51. Kc4
{[%clk 0:00:08.4]} 51... Kd8 {[%clk 0:00:02.5]} 52. Rh7 {[%clk 0:00:06.9]} 52...
Kc8 {[%clk 0:00:02.8]} 53. Rg7 {[%clk 0:00:06.9]} 53... Rd7 {[%clk 0:00:02.9]}
54. Rg5 {[%clk 0:00:06.3]} 54... Ra7 {[%clk 0:00:03.2]} 55. Kb3 {[%clk
0:00:06.3]} 55... Kb7 {[%clk 0:00:03.6]} 56. Ka4 {[%clk 0:00:06.7]} 56... Kb6
{[%clk 0:00:04.2]} 57. Rh5 {[%clk 0:00:06.3]} 57... Ra6 {[%clk 0:00:04.5]} 58.
c4 {[%clk 0:00:06.3]} 58... Ra7 {[%clk 0:00:02.4]} 59. c5+ {[%clk 0:00:06.3]}
59... Ka6 {[%clk 0:00:03]} 60. Rh7 {[%clk 0:00:07.2]} 60... Rc7 {[%clk
0:00:02.5]} 61. Rxc7 {[%clk 0:00:05.6]} 1/2-1/2

[Event "*** Titled Tuesday Blitz"]
[Site "Chess.com"]
[Date "2020.10.27"]
[Round "6"]
[White "fabianvivasz"]
[Black "paulrusan"]
[Result "0-1"]
[WhiteElo "2431"]
[BlackElo "2235"]
[TimeControl "180+1"]
[EndTime "11:08:28 PDT"]
[Termination "paulrusan won by resignation"]

1. e4 {[%clk 0:02:57.8]} 1... g6 {[%clk 0:02:59.7]} 2. d4 {[%clk 0:02:54.7]}
2... Bg7 {[%clk 0:02:59.8]} 3. Nc3 {[%clk 0:02:55.2]} 3... d6 {[%clk 0:03:00.2]}
4. f4 {[%clk 0:02:53.9]} 4... a6 {[%clk 0:02:59.4]} 5. Nf3 {[%clk 0:02:53.6]}
5... b5 {[%clk 0:02:59.5]} 6. Bd3 {[%clk 0:02:54.1]} 6... Bb7 {[%clk 0:02:59]}
7. e5 {[%clk 0:02:54]} 7... Nd7 {[%clk 0:02:57.9]} 8. Be4 {[%clk 0:02:50.2]}
8... Qb8 {[%clk 0:02:51.8]} 9. e6 {[%clk 0:02:33.4]} 9... fxe6 {[%clk
0:02:51.2]} 10. Qe2 {[%clk 0:02:09.3]} 10... b4 {[%clk 0:02:44.3]} 11. Bxb7
{[%clk 0:01:58.2]} 11... Qxb7 {[%clk 0:02:42.4]} 12. Ne4 {[%clk 0:01:58]} 12...
Ngf6 {[%clk 0:02:35.8]} 13. Neg5 {[%clk 0:01:54]} 13... Nf8 {[%clk 0:02:05]} 14.
O-O {[%clk 0:01:37.5]} 14... Qd5 {[%clk 0:02:02.5]} 15. Re1 {[%clk 0:01:33.2]}
15... h6 {[%clk 0:01:59.8]} 16. Nxe6 {[%clk 0:01:31.3]} 16... Nxe6 {[%clk
0:01:58.9]} 17. Qxe6 {[%clk 0:01:31.6]} 17... Qxe6 {[%clk 0:01:52.5]} 18. Rxe6
{[%clk 0:01:32.5]} 18... Kd7 {[%clk 0:01:45.7]} 19. Re2 {[%clk 0:01:31.3]} 19...
Rhg8 {[%clk 0:01:21.9]} 20. Bd2 {[%clk 0:01:21.2]} 20... a5 {[%clk 0:01:21.8]}
21. Rae1 {[%clk 0:01:15.8]} 21... Nd5 {[%clk 0:01:20.9]} 22. c4 {[%clk
0:01:13.3]} 22... bxc3 {[%clk 0:01:20.5]} 23. bxc3 {[%clk 0:01:13.1]} 23... Rae8
{[%clk 0:01:09.5]} 24. c4 {[%clk 0:01:04]} 24... Nb4 {[%clk 0:01:09.4]} 25. Rb1
{[%clk 0:00:44.3]} 25... c5 {[%clk 0:00:54.1]} 26. dxc5 {[%clk 0:00:39.5]} 26...
dxc5 {[%clk 0:00:53.4]} 27. a3 {[%clk 0:00:37.9]} 27... Nc6 {[%clk 0:00:52.7]}
28. Rb7+ {[%clk 0:00:29]} 28... Kc8 {[%clk 0:00:51]} 29. Rb5 {[%clk 0:00:25.8]}
29... Nd4 {[%clk 0:00:36.1]} 30. Nxd4 {[%clk 0:00:19.7]} 30... Bxd4+ {[%clk
0:00:35]} 31. Be3 {[%clk 0:00:19.7]} 31... e5 {[%clk 0:00:32.3]} 32. Bxd4 {[%clk
0:00:13.4]} 32... exd4 {[%clk 0:00:32.1]} 33. Rxc5+ {[%clk 0:00:13.8]} 33... Kb7
{[%clk 0:00:21.5]} 34. Rb2+ {[%clk 0:00:13.4]} 34... Ka6 {[%clk 0:00:20.3]} 35.
Rc6+ {[%clk 0:00:10.1]} 35... Ka7 {[%clk 0:00:20.3]} 36. Rc7+ {[%clk 0:00:10.4]}
36... Ka6 {[%clk 0:00:18]} 37. Rcb7 {[%clk 0:00:02.2]} 37... Re6 {[%clk
0:00:15.5]} 38. c5 {[%clk 0:00:02.8]} 38... Rge8 {[%clk 0:00:13.6]} 39. Kf2
{[%clk 0:00:02.8]} 39... Rc6 {[%clk 0:00:13.2]} 40. R7b6+ {[%clk 0:00:03.2]}
40... Rxb6 {[%clk 0:00:12.9]} 41. Rxb6+ {[%clk 0:00:04.1]} 41... Ka7 {[%clk
0:00:13.1]} 42. Rd6 {[%clk 0:00:05]} 42... Rc8 {[%clk 0:00:12.1]} 43. c6 {[%clk
0:00:05.2]} 43... Kb6 {[%clk 0:00:11.9]} 44. Ke2 {[%clk 0:00:05.7]} 44... Rxc6
{[%clk 0:00:11.8]} 45. Rxc6+ {[%clk 0:00:05.8]} 45... Kxc6 {[%clk 0:00:12]} 46.
Kd3 {[%clk 0:00:06.7]} 46... Kd5 {[%clk 0:00:12.6]} 47. g4 {[%clk 0:00:05.5]}
47... h5 {[%clk 0:00:11.9]} 48. f5 {[%clk 0:00:03.5]} 48... hxg4 {[%clk
0:00:09.8]} 49. fxg6 {[%clk 0:00:03.6]} 49... Ke6 {[%clk 0:00:10.3]} 50. Kxd4
{[%clk 0:00:04.1]} 50... Kf6 {[%clk 0:00:10.5]} 51. Ke4 {[%clk 0:00:04.3]} 51...
Kxg6 {[%clk 0:00:10.9]} 52. Kd5 {[%clk 0:00:02]} 52... Kg5 {[%clk 0:00:10.2]}
53. Kc5 {[%clk 0:00:02.4]} 53... Kh4 {[%clk 0:00:10.5]} 54. Kb5 {[%clk 0:00:03]}
54... Kh3 {[%clk 0:00:10.9]} 55. Kxa5 {[%clk 0:00:03.6]} 55... Kxh2 {[%clk
0:00:11.3]} 56. Kb6 {[%clk 0:00:03.8]} 56... g3 {[%clk 0:00:11.8]} 57. a4 {[%clk
0:00:04.7]} 57... g2 {[%clk 0:00:12.2]} 58. a5 {[%clk 0:00:05.3]} 58... g1=Q+
{[%clk 0:00:12]} 59. Kb7 {[%clk 0:00:05.6]} 59... Qb1+ {[%clk 0:00:11.6]} 60.
Ka7 {[%clk 0:00:05.4]} 60... Qb5 {[%clk 0:00:08.3]} 61. a6 {[%clk 0:00:05.8]}
61... Qd7+ {[%clk 0:00:08.1]} 62. Kb8 {[%clk 0:00:05.6]} 62... Qd8+ {[%clk
0:00:08]} 63. Kb7 {[%clk 0:00:06]} 63... Qd5+ {[%clk 0:00:06.6]} 64. Kb6 {[%clk
0:00:06.3]} 64... Qa8 {[%clk 0:00:06.2]} 65. a7 {[%clk 0:00:05.1]} 65... Kg3
{[%clk 0:00:06]} 0-1

[Event "*** Titled Tuesday Blitz"]
[Site "Chess.com"]
[Date "2020.10.27"]
[Round "6"]
[White "alexwinter25"]
[Black "Rytenko_V"]
[Result "0-1"]
[WhiteElo "2333"]
[BlackElo "2525"]
[TimeControl "180+1"]
[EndTime "11:08:38 PDT"]
[Termination "Rytenko_V won by checkmate"]

1. e4 {[%clk 0:03:00.9]} 1... e6 {[%clk 0:02:59.9]} 2. d4 {[%clk 0:03:00.8]}
2... d5 {[%clk 0:03:00.8]} 3. exd5 {[%clk 0:03:01.7]} 3... exd5 {[%clk
0:03:01.2]} 4. c4 {[%clk 0:03:02.6]} 4... Nf6 {[%clk 0:03:01.3]} 5. Nc3 {[%clk
0:03:03.1]} 5... c6 {[%clk 0:03:01.4]} 6. Bd3 {[%clk 0:03:03.5]} 6... Bd6 {[%clk
0:03:00.7]} 7. Nge2 {[%clk 0:03:03.7]} 7... O-O {[%clk 0:02:59.6]} 8. O-O {[%clk
0:03:03.7]} 8... Be6 {[%clk 0:02:49.8]} 9. c5 {[%clk 0:03:00.5]} 9... Bc7 {[%clk
0:02:49.1]} 10. h3 {[%clk 0:02:52.8]} 10... h6 {[%clk 0:02:49]} 11. Nf4 {[%clk
0:02:53]} 11... Re8 {[%clk 0:02:44.4]} 12. Re1 {[%clk 0:02:38.4]} 12... Bxf4
{[%clk 0:02:26.8]} 13. Bxf4 {[%clk 0:02:37.5]} 13... Nbd7 {[%clk 0:02:27.4]} 14.
b4 {[%clk 0:02:35.8]} 14... Nf8 {[%clk 0:02:26.4]} 15. Qf3 {[%clk 0:02:28.1]}
15... Kh8 {[%clk 0:02:17.4]} 16. Be5 {[%clk 0:02:23.5]} 16... N8d7 {[%clk
0:02:12.8]} 17. Bd6 {[%clk 0:02:18.3]} 17... Nf8 {[%clk 0:02:02.8]} 18. Re2
{[%clk 0:02:12.1]} 18... Bd7 {[%clk 0:02:02.4]} 19. Rae1 {[%clk 0:02:05]} 19...
Rxe2 {[%clk 0:02:00]} 20. Rxe2 {[%clk 0:02:05.1]} 20... Be6 {[%clk 0:02:00]} 21.
a4 {[%clk 0:02:00]} 21... a6 {[%clk 0:01:56.2]} 22. a5 {[%clk 0:01:58]} 22...
Qd7 {[%clk 0:01:53.2]} 23. Be5 {[%clk 0:01:51.1]} 23... N8h7 {[%clk 0:01:46.9]}
24. Bxh7 {[%clk 0:01:45.1]} 24... Nxh7 {[%clk 0:01:43.5]} 25. Qh5 {[%clk
0:01:45.1]} 25... Kg8 {[%clk 0:01:37.1]} 26. Re3 {[%clk 0:01:41.2]} 26... f6
{[%clk 0:01:35.3]} 27. Bd6 {[%clk 0:01:37.4]} 27... Bf7 {[%clk 0:01:30.8]} 28.
Qe2 {[%clk 0:01:33.9]} 28... Re8 {[%clk 0:01:30.1]} 29. Rxe8+ {[%clk 0:01:24.5]}
29... Qxe8 {[%clk 0:01:30.2]} 30. Qxe8+ {[%clk 0:01:24.6]} 30... Bxe8 {[%clk
0:01:31.1]} 31. f4 {[%clk 0:01:25.1]} 31... h5 {[%clk 0:01:25.4]} 32. g3 {[%clk
0:01:24.5]} 32... Bd7 {[%clk 0:01:23.9]} 33. h4 {[%clk 0:01:24.2]} 33... Bg4
{[%clk 0:01:19.8]} 34. Kf2 {[%clk 0:01:24.1]} 34... Kf7 {[%clk 0:01:19.8]} 35.
Ke3 {[%clk 0:01:19.5]} 35... Ke6 {[%clk 0:01:20]} 36. Na4 {[%clk 0:01:14.3]}
36... Kd7 {[%clk 0:01:02.6]} 37. Nb6+ {[%clk 0:01:12.2]} 37... Kd8 {[%clk
0:01:02.9]} 38. Na8 {[%clk 0:00:59.6]} 38... Bc8 {[%clk 0:00:50.3]} 39. Kf3
{[%clk 0:00:54.5]} 39... Bg4+ {[%clk 0:00:49.8]} 40. Ke3 {[%clk 0:00:54.8]}
40... Bc8 {[%clk 0:00:50.5]} 41. Nb6 {[%clk 0:00:54.5]} 41... Bg4 {[%clk
0:00:49.2]} 42. Na4 {[%clk 0:00:54.5]} 42... Bf5 {[%clk 0:00:43.7]} 43. Nc3
{[%clk 0:00:51.1]} 43... Bg4 {[%clk 0:00:42.8]} 44. Nb1 {[%clk 0:00:51.5]} 44...
Kd7 {[%clk 0:00:35]} 45. Nd2 {[%clk 0:00:51.3]} 45... Kd8 {[%clk 0:00:32.2]} 46.
Nf1 {[%clk 0:00:51.3]} 46... Kd7 {[%clk 0:00:31.6]} 47. Nh2 {[%clk 0:00:50.5]}
47... Ke6 {[%clk 0:00:26.9]} 48. Nf1 {[%clk 0:00:41.8]} 48... g5 {[%clk
0:00:21.7]} 49. Nd2 {[%clk 0:00:35.8]} 49... Kd7 {[%clk 0:00:19.9]} 50. fxg5
{[%clk 0:00:27.6]} 50... fxg5 {[%clk 0:00:20.8]} 51. hxg5 {[%clk 0:00:26.4]}
51... Nxg5 {[%clk 0:00:21.7]} 52. Kf4 {[%clk 0:00:26.9]} 52... Ne6+ {[%clk
0:00:20.5]} 53. Ke5 {[%clk 0:00:26.2]} 53... Be2 {[%clk 0:00:18.6]} 54. Nb1
{[%clk 0:00:24]} 54... Nd8 {[%clk 0:00:18.3]} 55. Kf6 {[%clk 0:00:23.1]} 55...
Ne6 {[%clk 0:00:16.9]} 56. Ke5 {[%clk 0:00:19.8]} 56... Bg4 {[%clk 0:00:17]} 57.
Nd2 {[%clk 0:00:19.5]} 57... Ng5 {[%clk 0:00:17]} 58. Kf4 {[%clk 0:00:17.9]}
58... Nf7 {[%clk 0:00:15.4]} 59. Be5 {[%clk 0:00:16.9]} 59... Ke6 {[%clk
0:00:14.8]} 60. Nf1 {[%clk 0:00:16.9]} 60... Nd8 {[%clk 0:00:14.8]} 61. Ne3
{[%clk 0:00:13.3]} 61... Be2 {[%clk 0:00:13.2]} 62. Kg5 {[%clk 0:00:12.5]} 62...
Nf7+ {[%clk 0:00:12.4]} 63. Kf4 {[%clk 0:00:13]} 63... Nd8 {[%clk 0:00:12.6]}
64. Nf5 {[%clk 0:00:11.7]} 64... Nf7 {[%clk 0:00:10.4]} 65. Ng7+ {[%clk
0:00:11.1]} 65... Ke7 {[%clk 0:00:09.8]} 66. Kf5 {[%clk 0:00:10.6]} 66... Bg4+
{[%clk 0:00:08.9]} 67. Kg6 {[%clk 0:00:10.2]} 67... Nxe5+ {[%clk 0:00:08.1]} 68.
dxe5 {[%clk 0:00:10.4]} 68... d4 {[%clk 0:00:09]} 69. Nf5+ {[%clk 0:00:05.2]}
69... Bxf5+ {[%clk 0:00:08.1]} 70. Kxf5 {[%clk 0:00:06.1]} 70... d3 {[%clk
0:00:08.6]} 71. Kg5 {[%clk 0:00:05.5]} 71... d2 {[%clk 0:00:09.1]} 72. Kxh5
{[%clk 0:00:06.4]} 72... d1=Q+ {[%clk 0:00:10]} 73. g4 {[%clk 0:00:07.3]} 73...
Qd5 {[%clk 0:00:10.1]} 74. g5 {[%clk 0:00:07.2]} 74... Qxe5 {[%clk 0:00:10.5]}
75. Kh6 {[%clk 0:00:08.1]} 75... Kf7 {[%clk 0:00:09.3]} 76. g6+ {[%clk 0:00:09]}
76... Kf6 {[%clk 0:00:09.5]} 77. b5 {[%clk 0:00:08.2]} 77... Qh2# {[%clk
0:00:09.6]} 0-1